bitfinex-derivatives/quotes_BTCF0:USTF0_20240923
["timestamp","ask_amount","ask_price","bid_price","bid_amount"]
[1727100745965,0.368552,63661.0,63659.0,0.14572463]
[1727100746163,0.078552,63661.0,63660.0,0.14572463]
[1727100746371,0.678552,63661.0,63660.0,0.14572463]
[1727100746568,1.149792,63661.0,63660.0,0.14572463]
[1727100746971,0.549792,63661.0,63660.0,0.14572463]
[1727100747276,1.228344,63661.0,63660.0,0.14572463]
[1727100747573,1.518344,63661.0,63660.0,0.14572463]
[1727100747777,1.594444,63661.0,63660.0,0.14572463]
[1727100747966,1.515892,63661.0,63660.0,0.14572463]
[1727100748970,1.43734,63661.0,63652.0,0.11025472]
[1727100749272,0.6508,63656.0,63653.0,0.14574231]
[1727100749474,0.6508,63656.0,63649.0,0.11025472]
[1727100749871,0.078562,63654.0,63649.0,0.11025472]
[1727100750072,0.078563,63653.0,63648.0,0.11025472]
[1727100750273,0.6508,63656.0,63648.0,0.11025472]
[1727100750492,0.6508,63656.0,63647.0,0.11025472]
[1727100750683,0.07857,63647.0,63645.0,0.11025472]
[1727100750979,0.07857,63647.0,63644.0,0.3608]
[1727100751181,0.29,63650.0,63644.0,0.3608]
[1727100751182,0.072572,63645.0,63644.0,0.3608]
[1727100751483,0.078565,63651.0,63649.0,0.007]
[1727100751867,1.149885,63651.0,63649.0,0.007]
[1727100752086,0.078566,63650.0,63649.0,0.007]
[1727100752582,1.149886,63650.0,63649.0,0.007]
[1727100752974,1.07132,63650.0,63649.0,0.007]
[1727100753167,1.07132,63650.0,63644.0,0.3608]
[1727100753366,0.23496087,63651.0,63644.0,0.3608]
[1727100753678,0.23496087,63651.0,63637.0,0.11025472]
[1727100753679,1.438932,63645.0,63637.0,0.11025472]
[1727100753885,0.29,63638.0,63631.0,0.3608]
[1727100754179,0.078584,63636.0,63631.0,0.3608]
[1727100754479,0.268584,63636.0,63631.0,0.3608]
[1727100754783,0.078587,63633.0,63631.0,0.3608]
[1727100754966,0.66144,63636.0,63631.0,0.3608]
[1727100754967,0.19,63636.0,63631.0,0.3608]
[1727100755166,1.340024,63636.0,63631.0,0.43813243]
[1727100755371,0.868584,63636.0,63631.0,0.43813243]
[1727100755572,0.078588,63632.0,63631.0,0.43813243]
[1727100755980,1.150068,63632.0,63631.0,0.43813243]
[1727100756267,1.150068,63632.0,63616.0,0.19256172]
[1727100756268,0.078593,63628.0,63627.0,0.07733243]
[1727100756473,0.5488,63628.0,63624.0,0.07733243]
[1727100756669,0.19,63625.0,63624.0,0.07733243]
[1727100756880,0.075598,63624.0,63623.0,0.07733243]
[1727100757180,0.265598,63624.0,63623.0,0.07733243]
[1727100757378,1.26152,63624.0,63623.0,0.07733243]
[1727100757585,0.66152,63624.0,63623.0,0.07733243]
[1727100757881,0.3626,63628.0,63624.0,0.078598]
[1727100758183,0.3588,63628.0,63625.0,0.07738719]
[1727100758484,0.3588,63628.0,63623.0,0.07738719]
[1727100758781,0.3588,63628.0,63624.0,0.07638719]
[1727100759079,0.3588,63628.0,63623.0,0.001]
[1727100759268,0.3588,63628.0,63623.0,0.079599]
[1727100759872,0.3588,63628.0,63623.0,0.001]
[1727100760281,0.3588,63628.0,63626.0,0.078595]
[1727100760485,0.3658,63628.0,63626.0,0.078595]
[1727100760786,0.3658,63628.0,63622.0,0.3608]
[1727100760983,0.3638,63628.0,63623.0,0.11978385]
[1727100761177,0.002,63628.0,63627.0,0.078594]
[1727100761381,0.002,63628.0,63627.0,0.33045112]
[1727100761579,0.001,63628.0,63627.0,0.268594]
[1727100761783,0.005,63628.0,63627.0,0.268594]
[1727100761981,0.005,63628.0,63627.0,0.078594]
[1727100762289,0.004,63628.0,63627.0,0.14043426]
[1727100762682,0.004,63628.0,63627.0,0.078594]
[1727100763383,0.5508,63635.0,63629.0,0.078591]
[1727100763582,0.5508,63635.0,63630.0,0.078591]
[1727100763881,0.078574,63644.0,63634.0,0.3608]
[1727100764083,0.5508,63646.0,63637.0,0.078582]
[1727100764684,0.3608,63652.0,63635.0,0.22262426]
[1727100764873,0.078567,63650.0,63644.0,0.3608]
[1727100765073,0.19,63651.0,63644.0,0.078572]
[1727100765281,0.3608,63647.0,63638.0,0.06184026]
[1727100765477,0.5508,63647.0,63640.0,0.078577]
[1727100765680,0.078573,63645.0,63640.0,0.078577]
[1727100765879,0.63017,63647.0,63641.0,0.078577]
[1727100766078,0.62937,63647.0,63641.0,0.078577]
[1727100766273,0.19,63652.0,63638.0,0.06184026]
[1727100766474,0.19,63652.0,63649.0,0.078566]
[1727100766683,0.19,63652.0,63643.0,0.3608]
[1727100766684,0.078565,63651.0,63643.0,0.3608]
[1727100766885,0.078567,63650.0,63643.0,0.3608]
[1727100767078,0.3608,63648.0,63643.0,0.3608]
[1727100767277,0.268564,63652.0,63643.0,0.3608]
[1727100767478,0.00088,63662.0,63651.0,0.5508]
[1727100767684,0.0037,63680.0,63661.0,0.5508]
[1727100767879,0.0787,63683.0,63677.0,0.3608]
[1727100768577,0.0787,63683.0,63679.0,0.07853]
[1727100768985,0.0787,63683.0,63677.0,0.3608]
[1727100769991,0.194,63680.0,63677.0,0.3608]
[1727100770193,0.194,63680.0,63677.0,0.3618]
[1727100770787,0.19,63680.0,63677.0,0.3608]
[1727100771183,0.0857,63683.0,63677.0,0.3608]
[1727100771388,0.003,63680.0,63677.0,0.3608]
[1727100771688,0.007,63680.0,63677.0,0.3608]
[1727100772292,0.007,63680.0,63671.0,0.3608]
[1727100772487,0.19,63672.0,63671.0,0.3608]
[1727100772683,0.19,63678.0,63671.0,0.3608]
[1727100773497,0.268532,63678.0,63671.0,0.3668]
[1727100773996,1.43,63677.0,63671.0,0.3668]
[1727100774186,1.43,63677.0,63671.0,0.3648]
[1727100774385,1.43,63677.0,63671.0,0.3668]
[1727100774795,1.43,63677.0,63671.0,0.3628]
[1727100775098,1.431,63677.0,63671.0,0.3608]
[1727100775299,0.268539,63672.0,63671.0,0.3608]
[1727100775789,0.078552,63661.0,63658.0,0.3608]
[1727100776004,0.19,63659.0,63658.0,0.3608]
[1727100776591,1.4308,63660.0,63658.0,0.3608]
[1727100776791,0.0804,63671.0,63658.0,0.5508]
[1727100777000,0.0804,63671.0,63664.0,0.3608]
[1727100777291,1.43,63670.0,63664.0,0.3608]
[1727100777696,1.43,63670.0,63658.0,0.36216]
[1727100777697,0.19,63668.0,63658.0,0.36216]
[1727100778000,0.001,63660.0,63658.0,0.3608]
[1727100778186,0.001,63660.0,63659.0,0.078555]
[1727100778390,0.2653,63669.0,63659.0,0.078555]
[1727100778588,0.2653,63669.0,63664.0,0.002]
[1727100778994,0.343843,63669.0,63664.0,0.002]
[1727100779295,0.2653,63669.0,63664.0,0.002]
[1727100779688,0.078555,63659.0,63658.0,0.3608]
[1727100779892,0.268555,63659.0,63658.0,0.3608]
[1727100780890,1.339835,63659.0,63658.0,0.3678]
[1727100781108,1.340835,63659.0,63658.0,0.3728]
[1727100781404,1.41939,63659.0,63658.0,0.3658]
[1727100781693,1.41939,63659.0,63648.0,0.0023564]
[1727100781694,0.078567,63649.0,63648.0,0.0023564]
[1727100781898,0.19,63652.0,63648.0,0.0023564]
[1727100782101,0.082555,63659.0,63651.0,0.3608]
[1727100782102,0.004,63659.0,63651.0,0.3608]
[1727100782395,0.004,63659.0,63658.0,0.3608]
[1727100782894,0.272555,63659.0,63658.0,0.3608]
[1727100783096,0.272555,63659.0,63651.0,0.3608]
[1727100783097,1.26428,63659.0,63651.0,0.3608]
[1727100783300,1.26428,63659.0,63648.0,0.0023564]
[1727100783301,0.19,63652.0,63648.0,0.0023564]
[1727100783498,0.19,63652.0,63648.0,0.3631564]
[1727100783888,0.009,63659.0,63652.0,0.078563]
[1727100784198,0.009,63659.0,63648.0,0.3631564]
[1727100784502,0.005,63659.0,63654.0,0.3608]
[1727100784797,0.19,63661.0,63654.0,0.3608]
[1727100785000,0.07856,63655.0,63654.0,0.3608]
[1727100785187,0.19,63656.0,63651.0,0.002]
[1727100785389,0.268559,63656.0,63652.0,0.002]
[1727100786290,0.078556,63659.0,63652.0,0.002]
[1727100786485,0.078556,63659.0,63654.0,0.002]
[1727100786685,0.19,63661.0,63654.0,0.002]
[1727100786686,0.078556,63658.0,63654.0,0.002]
[1727100787097,0.19,63661.0,63654.0,0.005]
[1727100787401,0.19,63655.0,63654.0,0.003]
[1727100787797,0.19,63655.0,63652.0,0.001]
[1727100788094,0.078562,63653.0,63652.0,0.001]
[1727100788293,0.5508,63655.0,63647.0,0.3608]
[1727100788497,0.19,63649.0,63647.0,0.3608]
[1727100789103,0.078568,63648.0,63647.0,0.3608]
[1727100789297,0.19,63649.0,63641.0,0.3608]
[1727100789500,0.19,63642.0,63641.0,0.3608]
[1727100789890,0.189,63642.0,63641.0,0.3608]
[1727100790287,0.19,63646.0,63641.0,0.3608]
[1727100790694,0.0779,63647.0,63641.0,0.3628]
[1727100790695,0.191,63642.0,63641.0,0.3628]
[1727100791597,0.19,63642.0,63641.0,0.3628]
[1727100792202,0.268576,63642.0,63631.0,0.3608]
[1727100792510,0.19,63632.0,63625.0,0.00132]
[1727100792803,0.19,63626.0,63623.0,0.3608]
[1727100793002,0.19,63630.0,63623.0,0.439398]
[1727100793196,0.19,63630.0,63629.0,0.3608]
[1727100793197,0.184,63630.0,63629.0,0.3608]
[1727100793400,0.262591,63630.0,63629.0,0.3608]
[1727100793602,0.262591,63630.0,63623.0,0.3608]
[1727100793603,0.078597,63625.0,63623.0,0.3608]
[1727100793897,0.184,63624.0,63623.0,0.3608]
[1727100794106,0.262598,63624.0,63623.0,0.3658]
[1727100794603,0.184,63624.0,63623.0,0.005]
[1727100794795,0.191,63626.0,63623.0,0.005]
[1727100795290,0.001,63626.0,63623.0,0.011]
[1727100795494,0.001,63624.0,63623.0,0.089599]
[1727100796096,0.001,63624.0,63623.0,0.561119]
[1727100796500,0.001,63624.0,63623.0,0.089599]
[1727100796902,0.001,63625.0,63623.0,0.083599]
[1727100797099,0.002,63626.0,63622.0,0.3608]
[1727100797302,0.19,63623.0,63622.0,0.3608]
[1727100797500,0.19,63623.0,63615.0,0.078608]
[1727100797501,0.19,63623.0,63620.0,0.3608]
[1727100797802,0.078602,63621.0,63620.0,0.3608]
[1727100798511,0.078604,63619.0,63613.0,0.3608]
[1727100798695,0.3608,63614.0,63600.0,0.3608]
[1727100798894,0.19,63601.0,63600.0,0.3608]
[1727100799799,0.19,63605.0,63600.0,0.3608]
[1727100800906,0.078625,63603.0,63600.0,0.3608]
[1727100801109,0.19,63605.0,63600.0,0.3608]
[1727100802402,0.191,63605.0,63600.0,0.439426]
[1727100802602,0.001,63605.0,63600.0,0.3608]
[1727100802804,0.001,63605.0,63604.0,0.078623]
[1727100803019,0.001,63605.0,63600.0,0.3608]
[1727100803205,0.002,63605.0,63601.0,0.078626]
[1727100803409,0.002,63605.0,63600.0,0.3608]
[1727100803599,0.19,63602.0,63600.0,0.3608]
[1727100803795,0.078626,63601.0,63600.0,0.3608]
[1727100804002,0.078626,63601.0,63597.0,0.3608]
[1727100804200,0.19,63598.0,63597.0,0.3608]
[1727100804705,0.19,63598.0,63588.0,0.3608]
[1727100805010,0.0841,63602.0,63599.0,0.078629]
[1727100805604,0.0841,63602.0,63600.0,0.078627]
[1727100805810,0.0841,63602.0,63596.0,0.439432]
[1727100806007,0.001,63598.0,63596.0,0.439432]
[1727100806202,0.001,63598.0,63597.0,0.078631]
[1727100806203,0.00012022,63598.0,63597.0,0.078631]
[1727100806814,0.19,63603.0,63596.0,0.3608]
[1727100807018,0.001,63602.0,63600.0,0.078627]
[1727100807202,0.078618,63608.0,63602.0,0.078624]
[1727100807508,0.19,63610.0,63602.0,0.439425]
[1727100807812,0.078624,63603.0,63602.0,0.3608]
[1727100808215,0.078631,63597.0,63596.0,0.3608]
[1727100808413,0.268631,63597.0,63596.0,0.3608]
[1727100808613,0.268631,63597.0,63590.0,0.43944]
[1727100808614,0.19,63597.0,63590.0,0.3608]
[1727100808826,0.19,63591.0,63590.0,0.3608]
[1727100809317,0.268639,63591.0,63590.0,0.3608]
[1727100809621,0.5508,63591.0,63582.0,0.3608]
[1727100809920,0.19,63583.0,63582.0,0.43945]
[1727100810111,0.16134,63590.0,63582.0,0.43945]
[1727100810304,0.19,63583.0,63582.0,0.43945]
[1727100810504,0.19,63588.0,63583.0,0.078649]
[1727100810708,0.19,63588.0,63582.0,0.3608]
[1727100810709,0.19,63593.0,63582.0,0.3608]
[1727100810908,0.19,63593.0,63591.0,0.078639]
[1727100811107,0.19,63593.0,63592.0,0.078638]
[1727100811313,0.001,63597.0,63589.0,0.3608]
[1727100811616,0.002,63591.0,63589.0,0.3608]
[1727100812225,0.001,63591.0,63590.0,0.07864]
[1727100812516,0.001,63591.0,63589.0,0.3608]
[1727100812517,0.07864,63590.0,63589.0,0.3608]
[1727100812718,0.19,63591.0,63583.0,0.078648]
[1727100812919,0.19,63586.0,63585.0,0.078646]
[1727100813113,0.001,63591.0,63590.0,0.07864]
[1727100813306,0.001,63591.0,63590.0,0.43944]
[1727100813307,0.002,63591.0,63590.0,0.43944]
[1727100813708,0.080639,63591.0,63590.0,0.3608]
[1727100814224,0.080639,63591.0,63590.0,0.43944]
[1727100814225,0.002,63591.0,63590.0,0.43944]
[1727100815323,0.001,63591.0,63590.0,0.43944]
[1727100816110,0.002,63591.0,63590.0,0.43944]
[1727100817217,0.192,63591.0,63590.0,0.3608]
[1727100817421,0.270639,63591.0,63590.0,0.3608]
[1727100818036,0.002,63591.0,63590.0,0.43944]
[1727100818321,0.002,63591.0,63590.0,0.3608]
[1727100818526,0.002,63591.0,63590.0,0.43944]
[1727100819225,0.002,63591.0,63590.0,0.3608]
[1727100819527,0.002,63591.0,63590.0,0.43944]
[1727100819717,0.002,63591.0,63590.0,0.63667911]
[1727100820223,0.080639,63591.0,63590.0,0.55803995]
[1727100820418,0.078639,63591.0,63590.0,0.3608]
[1727100820624,0.157278,63591.0,63590.0,0.3608]
[1727100820820,0.157278,63591.0,63590.0,0.42294195]
[1727100821119,0.157278,63591.0,63590.0,0.42294001]
[1727100821120,0.078639,63591.0,63590.0,0.42294001]
[1727100821325,0.078639,63591.0,63590.0,0.3608]
[1727100822114,0.268635,63595.0,63590.0,0.439439]
[1727100822316,0.19,63595.0,63591.0,0.0621413]
[1727100822519,0.19,63595.0,63593.0,0.0621413]
[1727100822819,0.268634,63595.0,63594.0,0.0621413]
[1727100823027,0.268634,63595.0,63593.0,0.0621413]
[1727100823329,0.268634,63595.0,63590.0,0.439439]
[1727100823330,0.270634,63595.0,63594.0,0.0621413]
[1727100823626,0.270634,63595.0,63590.0,0.43840326]
[1727100823926,0.078635,63594.0,63593.0,0.06222469]
[1727100824129,0.078646,63585.0,63584.0,0.07760326]
[1727100824327,0.078657,63576.0,63575.0,0.06782204]
[1727100824635,0.078657,63576.0,63563.0,0.18695472]
[1727100824636,0.3608,63576.0,63568.0,0.09274962]
[1727100824824,0.3598,63569.0,63565.0,0.09274962]
[1727100825017,0.3598,63569.0,63566.0,0.11989268]
[1727100825018,0.13489519,63567.0,63566.0,0.11989268]
[1727100825539,0.3598,63569.0,63566.0,0.2913043]
[1727100825715,0.3588,63569.0,63567.0,0.19855368]
[1727100825916,0.19,63571.0,63568.0,0.11988818]
[1727100826124,0.002,63576.0,63569.0,0.26580332]
[1727100826326,0.002,63576.0,63568.0,0.47192]
[1727100826327,0.001,63576.0,63575.0,0.078651]
[1727100826627,0.1632,63584.0,63575.0,0.26578846]
[1727100826628,0.0796,63584.0,63575.0,0.26578846]
[1727100826830,0.0796,63584.0,63579.0,0.09341645]
[1727100827015,0.0008,63585.0,63581.0,0.09341645]
[1727100827214,0.19,63590.0,63586.0,0.078636]
[1727100827419,0.19,63590.0,63587.0,0.21330463]
[1727100827716,0.19,63590.0,63588.0,0.29193963]
[1727100827919,0.19,63590.0,63588.0,0.11988818]
[1727100828521,0.19,63590.0,63588.0,0.19852318]
[1727100829414,0.3608,63594.0,63593.0,0.078628]
[1727100829617,0.3608,63594.0,63593.0,0.34439343]
[1727100830027,0.1641,63599.0,63594.0,0.078627]
[1727100830226,0.1641,63599.0,63595.0,0.26576543]
[1727100830422,0.1641,63599.0,63596.0,0.26576543]
[1727100830622,0.1641,63599.0,63597.0,0.26570218]
[1727100830817,0.1641,63599.0,63598.0,0.11983843]
[1727100831020,0.19,63600.0,63598.0,0.34432415]
[1727100831226,0.19,63600.0,63599.0,0.34432315]
[1727100831421,0.19,63600.0,63599.0,0.26570215]
[1727100831731,0.19,63600.0,63599.0,0.26567887]
[1727100831932,0.19,63600.0,63599.0,0.34429987]
[1727100832627,0.021,63600.0,63599.0,0.26567887]
[1727100832827,0.021,63600.0,63599.0,0.34429987]
[1727100833326,0.007,63600.0,63599.0,0.34429987]
[1727100833944,0.197,63600.0,63599.0,0.26567887]
[1727100834123,0.27562,63600.0,63599.0,0.11982792]
[1727100834322,0.63642,63600.0,63599.0,0.11982792]
[1727100834519,0.27562,63600.0,63599.0,0.11982792]
[1727100834723,0.197,63600.0,63599.0,0.11982792]
[1727100835018,0.194,63600.0,63599.0,0.11982792]
[1727100835328,0.19,63600.0,63599.0,0.11983556]
[1727100836119,0.26862,63600.0,63599.0,0.11983556]
[1727100836319,0.13491901,63600.0,63588.0,0.3608]
[1727100836525,0.19,63593.0,63588.0,0.3608]
[1727100837431,0.19,63593.0,63588.0,0.078634]
[1727100839334,0.19,63593.0,63588.0,0.079634]
[1727100839932,0.157028,63594.0,63587.0,0.078635]
[1727100840131,0.191,63593.0,63588.0,0.079635]
[1727100840321,0.191,63593.0,63591.0,0.07863]
[1727100840526,0.192,63593.0,63591.0,0.07863]
[1727100840728,0.192,63593.0,63588.0,0.001]
[1727100841146,0.078633,63590.0,63588.0,0.001]
[1727100841327,0.192,63593.0,63589.0,0.3608]
[1727100841630,0.002,63593.0,63592.0,0.15726]
[1727100841929,0.001,63593.0,63592.0,0.34726]
[1727100842131,0.001,63593.0,63592.0,1.41902]
[1727100842334,0.001,63594.0,63593.0,0.157256]
[1727100842335,0.002,63594.0,63593.0,0.157256]
[1727100842534,0.002,63594.0,63593.0,0.629016]
[1727100842742,0.001,63594.0,63593.0,1.150388]
[1727100842941,0.001,63593.0,63590.0,0.3608]
[1727100843136,0.001,63593.0,63592.0,0.07863]
[1727100843626,0.19,63605.0,63592.0,0.47176]
[1727100843826,0.19,63605.0,63597.0,0.3608]
[1727100844036,0.078617,63603.0,63597.0,0.3608]
[1727100844440,0.078617,63603.0,63602.0,0.078617]
[1727100844942,0.078618,63602.0,63599.0,0.07862]
[1727100845437,0.078618,63602.0,63600.0,0.07862]
[1727100846331,0.002,63602.0,63600.0,0.07862]
[1727100846631,0.005,63602.0,63597.0,0.439423]
[1727100846840,0.19,63600.0,63597.0,0.439423]
[1727100847232,0.26862,63600.0,63597.0,0.439423]
[1727100847441,0.078622,63598.0,63597.0,0.3608]
[1727100847638,0.3608,63598.0,63590.0,0.3608]
[1727100847947,0.006,63602.0,63590.0,0.3608]
[1727100847948,0.19,63591.0,63590.0,0.3608]
[1727100848945,0.268627,63594.0,63590.0,0.3608]
[1727100849331,0.001,63591.0,63590.0,0.3688]
[1727100849729,0.002,63591.0,63590.0,0.3758]
[1727100850233,0.002,63591.0,63590.0,0.3748]
[1727100850438,0.002,63591.0,63590.0,0.452432]
[1727100850837,0.002,63591.0,63590.0,0.531064]
[1727100851038,0.002,63591.0,63590.0,0.452432]
[1727100851943,0.080631,63591.0,63590.0,0.3738]
[1727100852138,0.520062,63591.0,63590.0,0.013]
[1727100852335,0.520062,63591.0,63579.0,0.3608]
[1727100852336,0.078644,63581.0,63579.0,0.3608]
[1727100852548,0.078645,63580.0,63572.0,0.439454]
[1727100852846,0.19,63576.0,63572.0,0.3608]
[1727100853035,0.19,63576.0,63575.0,0.078651]
[1727100853235,0.19,63576.0,63572.0,0.36212]
[1727100853236,0.19,63576.0,63572.0,0.3608]
[1727100853743,0.19,63573.0,63572.0,0.3608]
[1727100854245,0.078653,63573.0,63572.0,0.3668]
[1727100854430,0.350253,63573.0,63572.0,0.3668]
[1727100855241,0.350253,63573.0,63572.0,0.006]
[1727100855242,0.1682896,63573.0,63572.0,0.006]
[1727100855446,0.2716,63573.0,63572.0,0.006]
[1727100855745,0.0816,63573.0,63572.0,0.006]
[1727100855947,0.2726,63573.0,63572.0,0.006]
[1727100856139,0.001,63573.0,63572.0,0.084654]
[1727100856334,0.001,63573.0,63572.0,0.445454]
[1727100856843,0.19235994,63593.0,63572.0,1.43272]
[1727100857036,0.19235994,63593.0,63588.0,0.439435]
[1727100857236,0.19235994,63593.0,63588.0,0.3608]
[1727100857746,0.19,63589.0,63580.0,0.3608]
[1727100858041,0.268633,63589.0,63580.0,0.3608]
[1727100858245,0.19,63583.0,63580.0,0.3608]
[1727100859044,0.19,63588.0,63580.0,0.3608]
[1727100859250,0.001,63589.0,63583.0,0.078641]
[1727100859551,0.001,63589.0,63583.0,0.04670157]
[1727100859734,0.079634,63589.0,63582.0,0.04670157]
[1727100859935,0.00235994,63593.0,63583.0,0.12534157]
[1727100860135,0.08098894,63593.0,63584.0,0.078639]
[1727100860648,0.00235994,63593.0,63582.0,0.04670157]
[1727100860942,0.001,63589.0,63588.0,0.439434]
[1727100861144,0.001,63589.0,63588.0,0.3608]
[1727100861535,0.19,63592.0,63584.0,0.001]
[1727100861732,0.19,63585.0,63584.0,0.001]
[1727100861946,0.078633,63589.0,63584.0,0.001]
[1727100862141,0.078633,63589.0,63582.0,0.04670157]
[1727100862341,0.003,63589.0,63582.0,0.04670157]
[1727100862536,0.003,63589.0,63583.0,0.12534257]
[1727100863058,0.003,63589.0,63580.0,0.3608]
[1727100863059,0.002,63589.0,63586.0,0.078637]
[1727100863239,0.002,63589.0,63586.0,0.04670157]
[1727100863844,0.002,63589.0,63587.0,0.04670157]
[1727100864436,0.002,63589.0,63586.0,0.04670157]
[1727100864638,0.003,63589.0,63586.0,0.04670157]
[1727100864951,0.002,63589.0,63586.0,0.04670157]
[1727100865147,0.079634,63589.0,63586.0,0.04670157]
[1727100865340,0.079634,63589.0,63581.0,0.04670157]
[1727100865341,0.001,63589.0,63581.0,0.04670157]
[1727100865536,0.19,63582.0,63578.0,0.04670157]
[1727100865743,0.19,63582.0,63576.0,0.04670157]
[1727100865945,0.19,63582.0,63575.0,0.04670157]
[1727100866147,0.3608,63584.0,63570.0,0.00235959]
[1727100866148,0.078648,63577.0,63574.0,0.40750157]
[1727100866342,0.208651,63575.0,63574.0,0.3608]
[1727100866544,0.13,63575.0,63570.0,0.00235959]
[1727100867253,0.078653,63574.0,63570.0,0.00235959]
[1727100867554,0.129,63571.0,63570.0,0.00235959]
[1727100868138,0.207656,63571.0,63570.0,0.00335959]
[1727100868451,0.207656,63571.0,63559.0,0.3608]
[1727100868452,0.078666,63563.0,63559.0,0.3608]
[1727100868844,0.078669,63560.0,63559.0,0.3608]
[1727100869043,0.268669,63560.0,63553.0,0.3608]
[1727100869737,0.078671,63559.0,63553.0,0.3608]
[1727100870646,0.19,63560.0,63554.0,0.078677]
[1727100870847,0.19,63560.0,63553.0,0.3608]
[1727100871053,0.19,63555.0,63553.0,0.3608]
[1727100871554,0.442307,63563.0,63553.0,0.3608]
[1727100871555,0.078672,63558.0,63553.0,0.3608]
[1727100871748,0.19,63554.0,63553.0,0.3608]
[1727100871943,0.19,63554.0,63551.0,0.00236031]
[1727100872551,0.001,63555.0,63551.0,0.00236031]
[1727100872851,0.002,63555.0,63551.0,0.00236031]
[1727100874059,0.001,63555.0,63551.0,0.08104031]
[1727100874248,0.001,63554.0,63551.0,0.08104031]
[1727100874556,0.19,63553.0,63551.0,0.00236031]
[1727100875152,0.268679,63553.0,63551.0,0.00236031]
[1727100875760,0.19,63553.0,63551.0,0.00236031]
[1727100876056,0.191,63553.0,63549.0,0.078682]
[1727100876450,0.269678,63553.0,63546.0,0.3608]
[1727100876645,0.269678,63553.0,63546.0,0.439486]
[1727100877057,0.19,63548.0,63546.0,0.439486]
[1727100878657,0.191,63548.0,63546.0,0.439486]
[1727100878855,0.001,63548.0,63547.0,0.078685]
[1727100879253,0.002,63548.0,63547.0,0.078685]
[1727100879449,0.002,63548.0,63539.0,0.4505]
[1727100879450,0.002,63548.0,63539.0,0.3608]
[1727100879655,0.19,63540.0,63539.0,0.3608]
[1727100880063,0.19,63540.0,63533.0,0.3608]
[1727100880257,0.19,63534.0,63533.0,0.439503]
[1727100880762,0.5508,63534.0,63528.0,0.0931]
[1727100880953,0.19,63529.0,63526.0,0.3608]
[1727100881548,0.19,63529.0,63523.0,0.08107532]
[1727100881549,0.078704,63533.0,63523.0,0.00236132]
[1727100881867,0.3608,63534.0,63522.0,0.04670157]
[1727100881868,0.19,63524.0,63522.0,0.04670157]
[1727100882061,0.19,63524.0,63520.0,0.3608]
[1727100882365,0.19,63524.0,63523.0,0.3608]
[1727100882554,0.19,63528.0,63526.0,0.07871]
[1727100882756,0.001,63529.0,63526.0,0.07871]
[1727100882951,0.001,63529.0,63523.0,0.3608]
[1727100883165,0.001,63529.0,63523.0,0.48621557]
[1727100883465,0.19,63528.0,63525.0,0.078712]
[1727100883866,0.001,63529.0,63527.0,0.078709]
[1727100884064,0.001,63529.0,63524.0,0.04670157]
[1727100884254,0.0008,63532.0,63524.0,0.04670157]
[1727100884454,0.19,63539.0,63531.0,0.439505]
[1727100884660,0.19,63539.0,63531.0,0.3608]
[1727100884862,0.3944,63542.0,63538.0,0.078696]
[1727100884863,0.0008,63542.0,63538.0,0.078696]
[1727100885160,0.5516,63544.0,63538.0,0.078696]
[1727100885362,0.5516,63544.0,63532.0,0.04670157]
[1727100885363,0.19,63539.0,63534.0,0.078701]
[1727100885588,0.078699,63536.0,63531.0,0.04670157]
[1727100885864,0.19,63539.0,63530.0,0.3608]
[1727100885865,0.19,63537.0,63530.0,0.3608]
[1727100886570,0.19,63537.0,63534.0,0.0787]
[1727100886760,0.5508,63537.0,63531.0,0.04670157]
[1727100886965,0.629498,63537.0,63531.0,0.04670157]
[1727100887268,0.19,63532.0,63525.0,0.078712]
[1727100887461,0.19,63527.0,63526.0,0.078711]
[1727100887654,0.19,63527.0,63525.0,0.078712]
[1727100887854,0.001,63536.0,63525.0,0.3608]
[1727100888062,0.001,63536.0,63528.0,0.04670157]
[1727100888275,0.001,63536.0,63531.0,0.04670157]
[1727100888456,0.191,63532.0,63528.0,0.078708]
[1727100888766,0.001,63527.0,63526.0,0.078711]
[1727100889065,0.001,63527.0,63526.0,0.439511]
[1727100889267,0.2707,63536.0,63530.0,0.078706]
[1727100889470,0.192,63536.0,63530.0,0.078706]
[1727100889672,0.19,63531.0,63527.0,0.07871]
[1727100889870,0.002,63536.0,63526.0,0.3608]
[1727100890170,0.19,63527.0,63525.0,0.078712]
[1727100890469,0.19,63527.0,63526.0,0.078711]
[1727100890764,0.19,63527.0,63521.0,0.04906291]
[1727100890765,0.002,63536.0,63525.0,0.078712]
[1727100890965,0.0008,63538.0,63535.0,0.0787]
[1727100891162,0.0008,63538.0,63527.0,0.04670157]
[1727100891163,0.19,63538.0,63527.0,0.04670157]
[1727100891374,0.19,63538.0,63533.0,0.078702]
[1727100891375,0.078698,63537.0,63533.0,0.078702]
[1727100891566,0.19,63538.0,63524.0,0.61422781]
[1727100891567,0.268697,63538.0,63534.0,0.078701]
[1727100891774,0.268697,63538.0,63536.0,0.078698]
[1727100891775,0.19,63538.0,63536.0,0.078698]
[1727100892162,0.191,63538.0,63536.0,0.078698]
[1727100892365,0.078699,63537.0,63530.0,0.50230157]